fUSD/lending_fUSD_20250608
["ID","MTS","AMOUNT","RATE_DAILY","PERIOD"]
[364976483,1749373843494,-151.0,0.00018,2]
[364976485,1749373843505,-151.0,0.00018,2]
[364976488,1749373843516,-151.0,0.00018,2]
[364976490,1749373843530,-324.300717,0.00018,2]
[364976492,1749373843543,-324.300717,0.00018,2]
[364976494,1749373843554,-324.300717,0.00018,2]
[364976496,1749373843566,-324.300717,0.00018,2]
[364976498,1749373843579,-151.0,0.00018,2]
[364976501,1749373843592,-151.0,0.00018,2]
[364976503,1749373843605,-151.0,0.00018,2]
[364976505,1749373843619,-234.082302,0.00018,2]
[364976508,1749373843630,-151.0,0.00018,2]
[364976510,1749373843642,-151.0,0.00018,2]
[364976512,1749373843652,-151.0,0.00018,2]
[364976514,1749373843663,-151.0,0.00018,2]
[364976516,1749373843677,-294.165876,0.00018,2]
[364976519,1749373843689,-294.165876,0.00018,2]
[364976521,1749373843703,-294.165876,0.00018,2]
[364976523,1749373843715,-294.165876,0.00018,2]
[364976526,1749373843727,-151.0,0.00018,2]
[364976528,1749373843741,-151.0,0.00018,2]
[364976530,1749373843754,-151.0,0.00018,2]
[364976532,1749373843766,-151.0,0.00018,2]
[364976535,1749373843778,-151.0,0.00018,2]
[364976537,1749373843791,-151.0,0.00018,2]
[364976539,1749373843804,-151.0,0.00018,2]
[364976542,1749373843816,-151.0,0.00018,2]
[364976544,1749373843828,-151.0,0.00018,2]
[364976546,1749373843840,-190.230917,0.00018,2]
[364976548,1749373843852,-190.230917,0.00018,2]
[364976551,1749373843864,-190.230917,0.00018,2]
[364976553,1749373843876,-190.230917,0.00018,2]
[364976555,1749373843888,-2407.56078304,0.00018006,2]
[364976557,1749373843902,-153.18707652,0.0001801,2]
[364976560,1749373843915,-151.0,0.0001801,2]
[364976562,1749373843926,-150.0,0.00018019,20]
[364976564,1749373843937,-150.0,0.00018025,2]
[364976566,1749373843948,-213.97218168,0.00018025,2]
[364976568,1749373843959,-500.0,0.00018025,2]
[364976570,1749373843970,-500.0,0.00018025,2]
[364976572,1749373843981,-500.0,0.00018025,2]
[364976575,1749373843993,-150.0,0.00018025,2]
[364976577,1749373844007,-500.0,0.00018025,2]
[364976580,1749373844019,-150.0,0.00018025,2]
[364976582,1749373844029,-150.0,0.00018053,2]
[364976584,1749373844039,-500.0,0.00018053,2]
[364976586,1749373844049,-500.0,0.00018053,2]
[364976588,1749373844060,-500.0,0.00018053,2]
[364976590,1749373844072,-150.0,0.00018053,2]
[364976592,1749373844085,-500.0,0.00018053,2]
[364976595,1749373844097,-150.0,0.00018053,2]
[364976597,1749373844108,-255.1569122,0.0001808,2]
[364976599,1749373844118,-500.0,0.0001808,2]
[364976601,1749373844128,-558.0,0.0001808,2]
[364976603,1749373844139,-501.96658791,0.0001808,2]
[364976605,1749373844149,-150.0,0.0001808,2]
[364976607,1749373844161,-500.0,0.0001808,2]
[364976609,1749373844172,-150.0,0.0001808,2]
[364976611,1749373844182,-196.712187,0.00018088,2]
[364976614,1749373844196,-151.0,0.00018088,2]
[364976616,1749373844206,-151.0,0.00018088,2]
[364976618,1749373844217,-154.41495,0.00018088,2]
[364976620,1749373844228,-151.0,0.00018088,2]
[364976622,1749373844239,-183.308308,0.00018088,2]
[364976624,1749373844250,-151.0,0.00018088,2]
[364976627,1749373844261,-151.0,0.00018088,2]
[364976629,1749373844271,-227.857062,0.00018088,2]
[364976631,1749373844282,-151.0,0.00018088,2]
[364976633,1749373844292,-151.0,0.00018088,2]
[364976635,1749373844306,-151.0,0.00018088,2]
[364976637,1749373844317,-151.0,0.00018088,2]
[364976640,1749373844328,-151.0,0.00018088,2]
[364976642,1749373844339,-151.0,0.00018088,2]
[364976644,1749373844350,-151.0,0.00018088,2]
[364976646,1749373844361,-151.0,0.00018088,2]
[364976648,1749373844372,-151.0,0.00018088,2]
[364976650,1749373844383,-151.0,0.00018088,2]
[364976652,1749373844394,-242.444614,0.00018088,2]
[364976655,1749373844404,-306.161203,0.00018088,2]
[364976657,1749373844416,-151.0,0.00018088,2]
[364976659,1749373844426,-306.161203,0.00018088,2]
[364976661,1749373844437,-226.416354,0.00018088,2]
[364976663,1749373844452,-151.0,0.00018088,2]
[364976665,1749373844464,-151.0,0.00018088,2]
[364976668,1749373844475,-213.40047,0.00018088,2]
[364976670,1749373844486,-247.228358,0.00018088,2]
[364976672,1749373844497,-247.228358,0.00018088,2]
[364976674,1749373844507,-2000.0,0.00018088,2]
[364976676,1749373844520,-151.0,0.00018088,2]
[364976678,1749373844531,-151.0,0.00018088,2]
[364976680,1749373844543,-151.0,0.00018088,2]
[364976682,1749373844553,-294.165876,0.00018088,2]
[364976685,1749373844564,-294.165876,0.00018088,2]
[364976687,1749373844575,-158.674,0.00018088,2]
[364976689,1749373844586,-151.0,0.00018088,2]
[364976691,1749373844597,-176.487732,0.00018088,2]
[364976693,1749373844608,-190.230917,0.00018088,2]
[364976695,1749373844619,-190.230917,0.00018088,2]
[364976697,1749373844631,-150.0,0.000181,2]
[364976700,1749373844642,-150.0,0.00018108,2]
[364976702,1749373844653,-500.0,0.00018108,2]
[364976704,1749373844664,-150.0,0.00018108,2]
[364976706,1749373844675,-445.9257691,0.00018112,2]
[364976708,1749373844685,-205.22703741,0.00018135,2]
[364976710,1749373844696,-500.0,0.00018135,2]
[364976712,1749373844707,-250.0,0.00018135,2]
[364976714,1749373844718,-190.230917,0.00018147,2]
[364976717,1749373844729,-190.230917,0.00018147,2]
[364976719,1749373844739,-500.0,0.00018162,2]
[364976721,1749373844750,-500.0,0.0001819,2]
[364976723,1749373844762,-150.0,0.000182,2]
[364976725,1749373844772,-500.0,0.000182,2]
[364976727,1749373844783,-500.0,0.000182,2]
[364976729,1749373844794,-500.0,0.000182,2]
[364976732,1749373844804,-183.116592,0.000182,2]
[364976734,1749373844815,-500.0,0.00018217,2]
[364976736,1749373844826,-151.0,0.00018218,2]
[364976738,1749373844837,-151.0,0.00018218,2]
[364976740,1749373844847,-151.0,0.00018218,2]
[364976742,1749373844858,-151.0,0.00018218,2]
[364976744,1749373844869,-151.0,0.00018218,2]
[364976746,1749373844880,-151.0,0.00018218,2]
[364976748,1749373844891,-152.028849,0.00018218,2]
[364976751,1749373844901,-151.0,0.00018218,2]
[364976753,1749373844912,-414.292508,0.00018218,2]
[364976755,1749373844923,-151.0,0.00018218,2]
[364976757,1749373844934,-414.292508,0.00018218,2]
[364976759,1749373844945,-152.175624,0.00018218,2]
[364976761,1749373844955,-151.350939,0.00018218,2]
[364976763,1749373844966,-160.124234,0.00018218,2]
[364976765,1749373844977,-151.0,0.00018218,2]
[364976767,1749373844988,-151.0,0.00018218,2]
[364976770,1749373844999,-151.541357,0.00018218,2]
[364976772,1749373845009,-151.0,0.00018218,2]
[364976774,1749373845020,-155.8635147,0.00018218,2]
[364976776,1749373845031,-171.24908528,0.00018218,2]
[364976778,1749373845041,-328.416163,0.00018218,2]
[364976780,1749373845052,-328.416163,0.00018218,2]
[364976782,1749373845063,-151.0,0.00018218,2]
[364976785,1749373845075,-151.0,0.00018218,2]
[364976787,1749373845086,-153.665779,0.00018218,2]
[364976789,1749373845097,-151.0,0.00018218,2]
[364976791,1749373845109,-306.161203,0.00018218,2]
[364976793,1749373845121,-151.0,0.00018218,2]
[364976795,1749373845132,-306.161203,0.00018218,2]
[364976798,1749373845143,-151.0,0.00018218,2]
[364976800,1749373845154,-151.0,0.00018218,2]
[364976802,1749373845165,-247.228358,0.00018218,2]
[364976804,1749373845175,-247.228358,0.00018218,2]
[364976806,1749373845186,-2000.0,0.00018218,2]
[364976808,1749373845197,-2000.0,0.00018218,2]
[364976810,1749373845208,-151.0,0.00018218,2]
[364976813,1749373845218,-324.300717,0.00018218,2]
[364976815,1749373845229,-324.300717,0.00018218,2]
[364976817,1749373845240,-151.0,0.00018218,2]
[364976819,1749373845251,-151.0,0.00018218,2]
[364976821,1749373845262,-294.165876,0.00018218,2]
[364976823,1749373845273,-294.165876,0.00018218,2]
[364976825,1749373845284,-151.0,0.00018218,2]
[364976828,1749373845294,-190.230917,0.00018218,2]
[364976830,1749373845305,-190.230917,0.00018218,2]
[364976832,1749373845315,-153.18707652,0.0001822,2]
[364976834,1749373845326,-502.89368345,0.00018227,2]
[364976836,1749373845336,-500.0,0.00018227,2]
[364976838,1749373845347,-500.0,0.00018227,2]
[364976840,1749373845359,-500.0,0.00018245,2]
[364976842,1749373845370,-500.0,0.00018255,2]
[364976845,1749373845382,-500.0,0.00018255,2]
[364976847,1749373845393,-500.0,0.00018272,2]
[364976849,1749373845403,-324.300717,0.00018273,2]
[364976851,1749373845414,-324.300717,0.00018273,2]
[364976853,1749373845425,-151.0,0.00018273,2]
[364976855,1749373845435,-151.0,0.00018276,2]
[364976857,1749373845450,-151.0,0.00018276,2]
[364976859,1749373845461,-151.0,0.00018276,2]
[364976861,1749373845472,-151.0,0.00018276,2]
[364976864,1749373845483,-151.0,0.00018276,2]
[364976866,1749373845495,-151.0,0.00018276,2]
[364976868,1749373845506,-151.0,0.00018276,2]
[364976870,1749373845518,-151.0,0.00018276,2]
[364976873,1749373845528,-151.0,0.00018276,2]
[364976876,1749373845538,-151.0,0.00018276,2]
[364976880,1749373845548,-151.0,0.00018276,2]
[364976882,1749373845558,-151.0,0.00018276,2]
[364976884,1749373845567,-151.0,0.00018276,2]
[364976886,1749373845576,-151.0,0.00018276,2]
[364976888,1749373845585,-151.0,0.00018276,2]
[364976909,1749373845880,-151.0,0.00018276,2]
[364976912,1749373845902,-151.0,0.00018276,2]
[364976914,1749373845916,-151.0,0.00018276,2]
[364976916,1749373845926,-151.0,0.00018276,2]
[364976918,1749373845935,-151.0,0.00018276,2]
[364976920,1749373845944,-151.0,0.00018276,2]
[364976922,1749373845954,-151.0,0.00018276,2]
[364976924,1749373845963,-151.0,0.00018276,2]
[364976926,1749373845975,-151.0,0.00018276,2]
[364976928,1749373845985,-151.0,0.00018276,2]
[364976930,1749373845995,-151.0,0.00018276,2]
[364976932,1749373846005,-151.0,0.00018276,2]
[364976934,1749373846015,-151.0,0.00018276,2]
[364976936,1749373846024,-151.0,0.00018276,2]
[364976938,1749373846033,-151.0,0.00018276,2]
[364976940,1749373846043,-151.0,0.00018276,2]
[364976942,1749373846053,-198.0,0.00018276,2]
[364976944,1749373846062,-152.267092,0.00018276,2]
[364976946,1749373846072,-152.572298,0.00018276,2]
[364976948,1749373846081,-151.0,0.00018276,2]
[364976949,1749373846091,-151.0,0.00018276,2]
[364976951,1749373846100,-151.0,0.00018276,2]
[364976953,1749373846109,-306.161203,0.00018276,2]
[364976955,1749373846119,-258.229727,0.00018276,2]
[364976957,1749373846128,-306.161203,0.00018276,2]
[364976959,1749373846137,-151.0,0.00018276,2]
[364976961,1749373846146,-151.0,0.00018276,2]
[364976963,1749373846155,-247.228358,0.00018276,2]
[364976965,1749373846165,-247.228358,0.00018276,2]
[364976967,1749373846174,-2000.0,0.00018276,2]
[364976969,1749373846183,-2000.0,0.00018276,2]
[364976971,1749373846192,-151.0,0.00018276,2]
[364976973,1749373846202,-151.0,0.00018276,2]
[364976975,1749373846212,-294.165876,0.00018276,2]
[364976977,1749373846222,-294.165876,0.00018276,2]
[364976979,1749373846232,-151.0,0.00018276,2]
[364976981,1749373846241,-190.230917,0.00018276,2]
[364976983,1749373846250,-190.230917,0.00018276,2]
[364976985,1749373846259,-500.0,0.00018282,2]
[364976987,1749373846269,-500.0,0.00018282,2]
[364976989,1749373846279,-500.0,0.00018299,2]
[364976991,1749373846288,-150.0,0.000183,2]
[364976993,1749373846298,-150.0,0.000183,2]
[364976995,1749373846306,-157.04611615,0.000183,2]
[364976997,1749373846316,-151.0,0.00018303,2]
[364976999,1749373846325,-151.0,0.00018303,2]
[364977001,1749373846335,-151.0,0.00018303,2]
[364977003,1749373846344,-500.0,0.0001831,2]
[364977005,1749373846353,-500.0,0.00018327,2]
[364977007,1749373846363,-306.161203,0.00018331,2]
[364977009,1749373846372,-306.161203,0.00018331,2]
[364977011,1749373846384,-224.132331,0.00018331,2]
[364977013,1749373846394,-151.0,0.00018331,2]
[364977015,1749373846403,-247.228358,0.00018331,2]
[364977017,1749373846413,-247.228358,0.00018331,2]
[364977019,1749373846422,-2000.0,0.00018331,2]
[364977022,1749373846432,-2000.0,0.00018331,2]
[364977024,1749373846441,-151.0,0.00018331,2]
[364977027,1749373846454,-324.300717,0.00018331,2]
[364977029,1749373846464,-324.300717,0.00018331,2]
[364977031,1749373846473,-151.0,0.00018331,2]
[364977033,1749373846482,-151.0,0.00018331,2]
[364977035,1749373846493,-294.165876,0.00018331,2]
[364977037,1749373846503,-294.165876,0.00018331,2]
[364977039,1749373846512,-190.230917,0.00018331,2]
[364977041,1749373846522,-190.230925,0.00018331,2]
[364977043,1749373846532,-445.9257691,0.00018336,2]
[364977045,1749373846542,-500.0,0.00018337,2]
[364977047,1749373846551,-500.0,0.00018354,2]
[364977049,1749373846560,-151.0,0.00018358,2]
[364977051,1749373846570,-151.0,0.00018358,2]
[364977053,1749373846580,-500.0,0.00018364,2]
[364977055,1749373846589,-1164.0,0.00018375,2]
[364977057,1749373846598,-500.0,0.00018382,2]
[364977059,1749373846608,-500.0,0.00018392,2]
[364977061,1749373846617,-150.0,0.000184,2]
[364977063,1749373846627,-150.0,0.000184,2]
[364977065,1749373846636,-150.0,0.000184,2]
[364977067,1749373846646,-150.0,0.000184,2]
[364977069,1749373846655,-150.0,0.000184,2]
[364977071,1749373846665,-150.0,0.000184,2]
[364977073,1749373846675,-150.0,0.000184,2]
[364977075,1749373846685,-151.0,0.000184,2]
[364977077,1749373846694,-151.0,0.000184,2]
[364977079,1749373846704,-151.0,0.000184,2]
[364977081,1749373846713,-151.0,0.000184,2]
[364977083,1749373846723,-151.0,0.000184,2]
[364977085,1749373846732,-151.0,0.000184,2]
[364977087,1749373846742,-151.0,0.000184,2]
[364977089,1749373846751,-414.292508,0.000184,2]
[364977091,1749373846760,-153.275162,0.000184,2]
[364977093,1749373846768,-414.292508,0.000184,2]
[364977095,1749373846777,-151.0,0.000184,2]
[364977097,1749373846787,-151.0,0.000184,2]
[364977099,1749373846796,-215.742022,0.000184,2]
[364977101,1749373846805,-328.416163,0.000184,2]
[364977103,1749373846814,-328.416163,0.000184,2]
[364977105,1749373846823,-151.0,0.000184,2]
[364977107,1749373846831,-154.543673,0.000184,2]
[364977109,1749373846841,-306.161203,0.000184,2]
[364977110,1749373846850,-306.161203,0.000184,2]
[364977112,1749373846859,-179.180406,0.000184,2]
[364977114,1749373846868,-247.228358,0.000184,2]
[364977116,1749373846877,-247.228358,0.000184,2]
[364977118,1749373846886,-2000.0,0.000184,2]
[364977120,1749373846895,-2000.0,0.000184,2]
[364977122,1749373846904,-151.0,0.000184,2]
[364977124,1749373846913,-324.300717,0.000184,2]
[364977126,1749373846922,-324.300717,0.000184,2]
[364977128,1749373846931,-151.0,0.000184,2]
[364977130,1749373846941,-151.0,0.000184,2]
[364977132,1749373846951,-294.165876,0.000184,2]
[364977134,1749373846960,-294.165876,0.000184,2]
[364977136,1749373846970,-151.0,0.000184,2]
[364977138,1749373846979,-624.0,0.00018409,2]
[364977140,1749373846988,-500.0,0.00018419,2]
[364977142,1749373846997,-153.18707652,0.0001843,2]
[364977144,1749373847007,-306.161203,0.00018441,2]
[364977146,1749373847015,-306.161203,0.00018441,2]
[364977148,1749373847024,-247.228358,0.00018441,2]
[364977150,1749373847034,-247.228358,0.00018441,2]
[364977152,1749373847043,-151.0,0.00018441,2]
[364977154,1749373847052,-294.165876,0.00018441,2]
[364977156,1749373847061,-294.165876,0.00018441,2]
[364977158,1749373847070,-168.0,0.00018441,2]
[364977160,1749373847079,-500.0,0.00018447,2]
[364977161,1749373847088,-168.92,0.00018458,2]
[364977163,1749373847097,-151.0,0.00018463,2]
[364977165,1749373847106,-151.0,0.00018463,2]
[364977167,1749373847115,-168.0,0.00018464,2]
[364977169,1749373847124,-324.300717,0.00018465,2]
[364977171,1749373847133,-324.300717,0.00018465,2]
[364977173,1749373847143,-151.0,0.00018465,2]
[364977175,1749373847152,-500.0,0.00018474,2]
[364977177,1749373847162,-168.0,0.00018476,2]
[364977179,1749373847171,-2000.0,0.0001849,2]
[364977181,1749373847180,-2000.0,0.0001849,2]
[364977183,1749373847189,-151.0,0.0001849,2]
[364977185,1749373847199,-151.0,0.0001849,2]
[364977187,1749373847208,-245.86524233,0.000185,5]
[364977189,1749373847218,-150.0,0.000185,2]
[364977191,1749373847226,-150.0,0.000185,2]
[364977193,1749373847236,-153.907094,0.000185,2]
[364977195,1749373847247,-153.907094,0.000185,2]
[364977197,1749373847256,-151.0,0.000185,2]
[364977199,1749373847266,-151.0,0.000185,2]
[364977200,1749373847275,-151.0,0.000185,2]
[364977202,1749373847284,-151.0,0.000185,2]
[364977204,1749373847293,-151.0,0.000185,2]
[364977206,1749373847303,-151.0,0.000185,2]
[364977208,1749373847313,-151.0,0.000185,2]
[364977210,1749373847322,-151.0,0.000185,2]
[364977212,1749373847332,-151.0,0.000185,2]
[364977214,1749373847341,-151.0,0.000185,2]
[364977216,1749373847350,-152.196669,0.000185,2]
[364977218,1749373847359,-151.0,0.000185,2]
[364977220,1749373847369,-151.0,0.000185,2]
[364977222,1749373847378,-151.562397,0.000185,2]
[364977224,1749373847388,-151.0,0.000185,2]
[364977226,1749373847397,-151.0,0.000185,2]
[364977228,1749373847407,-151.0,0.000185,2]
[364977230,1749373847416,-166.911609,0.000185,2]
[364977232,1749373847425,-151.0,0.000185,2]
[364977234,1749373847434,-166.911609,0.000185,2]
[364977236,1749373847445,-151.0,0.000185,2]
[364977238,1749373847456,-151.0,0.000185,2]
[364977240,1749373847465,-151.0,0.000185,2]
[364977242,1749373847474,-151.0,0.000185,2]
[364977244,1749373847484,-151.0,0.000185,2]
[364977246,1749373847494,-151.0,0.000185,2]
[364977248,1749373847503,-151.0,0.000185,2]
[364977250,1749373847513,-151.0,0.000185,2]
[364977251,1749373847524,-151.0,0.000185,2]
[364977253,1749373847534,-151.0,0.000185,2]
[364977255,1749373847543,-414.292508,0.000185,2]
[364977257,1749373847552,-414.292508,0.000185,2]
[364977259,1749373847562,-151.0,0.000185,2]
[364977261,1749373847571,-151.0,0.000185,2]
[364977263,1749373847581,-328.416163,0.000185,2]
[364977265,1749373847590,-328.416163,0.000185,2]
[364977267,1749373847600,-151.0,0.000185,2]
[364977269,1749373847610,-151.0,0.000185,2]
[364977271,1749373847619,-292.039356,0.000185,2]
[364977273,1749373847629,-306.161203,0.000185,2]
[364977275,1749373847639,-306.161204,0.000185,2]
[364977277,1749373847648,-247.228358,0.000185,2]
[364977279,1749373847657,-247.228348,0.000185,2]
[364977281,1749373847667,-2000.0,0.000185,2]
[364977283,1749373847676,-2000.0,0.000185,2]
[364977285,1749373847686,-151.0,0.000185,2]
[364977287,1749373847696,-324.300717,0.000185,2]
[364977289,1749373847705,-324.300717,0.000185,2]
[364977291,1749373847714,-151.0,0.000185,2]
[364977293,1749373847724,-151.0,0.000185,2]
[364977295,1749373847734,-294.165876,0.000185,2]
[364977297,1749373847744,-294.16588,0.000185,2]
[364977298,1749373847753,-500.0,0.00018501,2]
[364977299,1749373847762,-151.0,0.00018518,2]
[364977300,1749373847772,-151.0,0.00018518,2]
[364977301,1749373847781,-168.0,0.0001852,2]
[364977302,1749373847791,-217.809042,0.00018527,2]
[364977303,1749373847800,-151.0,0.00018527,2]
[364977304,1749373847809,-151.0,0.00018527,2]
[364977305,1749373847819,-151.0,0.00018527,2]
[364977306,1749373847828,-151.0,0.00018527,2]
[364977307,1749373847838,-414.292508,0.00018527,2]
[364977308,1749373847848,-414.292508,0.00018527,2]
[364977310,1749373847857,-151.0,0.00018527,2]
[364977312,1749373847866,-328.416163,0.00018527,2]
[364977314,1749373847875,-328.416163,0.00018527,2]
[364977316,1749373847885,-209.74678,0.00018527,2]
[364977318,1749373847895,-500.0,0.00018529,2]
[364977320,1749373847904,-151.0,0.00018545,2]
[364977322,1749373847913,-151.0,0.00018545,2]
[364977324,1749373847922,-324.300717,0.00018545,2]
[364977326,1749373847932,-324.300713,0.00018545,2]
[364977327,1749373847941,-252.631472,0.00018545,2]
[364977329,1749373847950,-151.0,0.00018555,2]
[364977331,1749373847960,-151.502699,0.00018555,2]
[364977333,1749373847969,-151.0,0.00018555,2]
[364977335,1749373847979,-151.0,0.00018555,2]
[364977337,1749373847988,-252.732489,0.00018555,2]
[364977339,1749373847998,-151.0,0.00018555,2]
[364977341,1749373848008,-173.203436,0.00018555,2]
[364977343,1749373848017,-500.0,0.00018556,2]
[364977345,1749373848027,-445.9257691,0.00018559,2]
[364977347,1749373848036,-151.0,0.00018567,2]
[364977349,1749373848046,-151.0,0.00018567,2]
[364977351,1749373848056,-500.0,0.00018584,2]
[364977353,1749373848066,-172.259752,0.00018603,2]
[364977355,1749373848075,-151.0,0.00018603,2]
[364977357,1749373848084,-168.0,0.00018605,2]
[364977359,1749373848094,-151.0,0.0001861,2]
[364977361,1749373848104,-500.0,0.00018611,2]
[364977363,1749373848113,-151.122323,0.00018622,2]
[364977365,1749373848123,-151.0,0.00018622,2]
[364977367,1749373848133,-151.0,0.00018622,2]
[364977369,1749373848143,-151.0,0.00018622,2]
[364977371,1749373848153,-153.907094,0.00018622,2]
[364977373,1749373848164,-153.907094,0.00018622,2]
[364977375,1749373848175,-151.0,0.00018622,2]
[364977377,1749373848184,-232.507636,0.00018622,2]
[364977379,1749373848194,-151.0,0.00018622,2]
[364977381,1749373848203,-151.0,0.00018622,2]
[364977383,1749373848214,-151.0,0.00018622,2]
[364977385,1749373848223,-151.654714,0.00018622,2]
[364977387,1749373848233,-151.0,0.00018622,2]
[364977389,1749373848242,-151.0,0.00018622,2]
[364977391,1749373848251,-151.0,0.00018622,2]
[364977393,1749373848261,-151.0,0.00018622,2]
[364977395,1749373848271,-151.0,0.00018622,2]
[364977397,1749373848281,-166.911609,0.00018622,2]
[364977398,1749373848290,-151.0,0.00018622,2]
[364977400,1749373848300,-166.911609,0.00018622,2]
[364977402,1749373848309,-151.0,0.00018622,2]
[364977404,1749373848319,-151.0,0.00018622,2]
[364977406,1749373848328,-151.0,0.00018622,2]
[364977408,1749373848338,-151.0,0.00018622,2]
[364977410,1749373848348,-151.0,0.00018622,2]
[364977412,1749373848358,-151.0,0.00018622,2]
[364977414,1749373848367,-414.292508,0.00018622,2]
[364977416,1749373848377,-414.292508,0.00018622,2]
[364977418,1749373848387,-277.673132,0.00018622,2]
[364977420,1749373848396,-151.0,0.00018622,2]
[364977422,1749373848405,-328.416163,0.00018622,2]
[364977424,1749373848415,-328.416163,0.00018622,2]
[364977426,1749373848424,-151.0,0.00018622,2]
[364977428,1749373848433,-152.796998,0.00018622,2]
[364977430,1749373848445,-151.0,0.00018637,2]
[364977432,1749373848455,-151.0,0.00018637,2]
[364977434,1749373848465,-151.0,0.00018637,2]
[364977436,1749373848475,-151.0,0.00018637,2]
[364977438,1749373848485,-414.292508,0.00018637,2]
[364977439,1749373848496,-414.292508,0.00018637,2]
[364977442,1749373848506,-328.416163,0.00018637,2]
[364977443,1749373848516,-328.416163,0.00018637,2]
[364977446,1749373848528,-500.0,0.00018638,2]
[364977448,1749373848538,-153.18707652,0.0001864,2]
[364977449,1749373848548,-400.0,0.00018666,2]
[364977451,1749373848558,-57.18801422,0.00018667,2]
[364977479,1749373848836,-110.81198578,0.00018667,2]
[364977481,1749373848846,-168.0,0.00018682,2]
[364977483,1749373848856,-980.94485654,0.00018684,2]
[364977485,1749373848866,-157.04611615,0.000187,2]
[364977487,1749373848876,-168.0,0.00018701,2]
[364977506,1749373849058,-152.0,0.0001874,3]
[364977508,1749373849068,-250.0,0.00018755,2]
[364977510,1749373849079,-67.81199385,0.00018781,2]
[364977513,1749373849094,-376.0,0.000187,2]
[364977515,1749373849104,-87.18800615,0.00018781,2]
[364977517,1749373849114,-4083.0,0.00018781,2]
[364977519,1749373849123,-6141.65540651,0.00018781,2]
[364977540,1749373849327,-690.03076795,0.000179,2]
[364977542,1749373849337,-2500.0,0.000179,2]
[364977544,1749373849347,-875.34459349,0.00018781,2]
[364977546,1749373849359,-754.34282202,0.00018781,2]
[364977549,1749373849370,-128.65717798,0.00018781,2]
[364977551,1749373849380,-654.8955941,0.00018781,2]
[364977553,1749373849392,-197.1044059,0.00018781,2]
[364977555,1749373849401,-445.9257691,0.00018783,2]
[364977557,1749373849410,-7.47930809,0.00018789,2]
[364977574,1749373849580,-143.52069191,0.00018789,2]
[364977576,1749373849590,-151.0,0.00018789,2]
[364977578,1749373849600,-197.457272,0.00018789,2]
[364977580,1749373849609,-237.006949,0.00018789,2]
[364977582,1749373849619,-151.0,0.000188,2]
[364977584,1749373849629,-166.911609,0.000188,2]
[364977586,1749373849638,-166.911609,0.000188,2]
[364977588,1749373849648,-151.0,0.000188,2]
[364977590,1749373849658,-151.0,0.000188,2]
[364977592,1749373849668,-151.0,0.000188,2]
[364977594,1749373849677,-1200.0,0.000188,6]
[364977596,1749373849686,-151.0,0.00018816,2]